[Event "Titled Tuesday Blitz May 03 Late 2022"]
[White "Zhigalko, Sergei"]
[Black "Matinian, Nikita"]
[WhiteFideId "13502956"]
[BlackFideId "24129100"]
[WhiteElo "2662"]
[BlackElo "2422"]
[Result "1-0"]
[Round "11"]
[TimeControl "180+1"]
[Date "2022.05.03"]
[WhiteClock "0:00:06"]
[BlackClock "0:00:02"]

1. e4 {[%clk 0:03:00]}  d6 {[%clk 0:02:57]} 2. d4 {[%clk 0:03:01]}  g6 {[%clk 0:02:57]} 3. Nc3 {[%clk 0:03:02]}  Bg7 {[%clk 0:02:58]} 4. Nf3 {[%clk 0:03:02]}  a6 {[%clk 0:02:56]} 5. Be3 {[%clk 0:03:02]}  b5 {[%clk 0:02:56]} 6. a4 {[%clk 0:03:02]}  b4 {[%clk 0:02:56]} 7. Ne2 {[%clk 0:03:03]}  Bb7 {[%clk 0:02:56]} 8. Ng3 {[%clk 0:03:04]}  h5 {[%clk 0:02:56]} 9. Bd3 {[%clk 0:03:04]}  Nd7 {[%clk 0:02:53]} 10. c3 {[%clk 0:03:03]}  h4 {[%clk 0:02:53]} 11. Ne2 {[%clk 0:03:03]}  h3 {[%clk 0:02:48]} 12. gxh3 {[%clk 0:03:03]}  e5 {[%clk 0:02:46]} 13. Qb3 {[%clk 0:02:59]}  Rb8 {[%clk 0:02:36]} 14. Ng5 {[%clk 0:02:56]}  Qf6 {[%clk 0:02:15]} 15. f4 {[%clk 0:02:06]}  bxc3 {[%clk 0:01:10]} 16. Qxc3 {[%clk 0:02:04]}  Qd8 {[%clk 0:00:53]} 17. fxe5 {[%clk 0:01:43]}  dxe5 {[%clk 0:00:53]} 18. Rf1 {[%clk 0:01:00]}  Nh6 {[%clk 0:00:44]} 19. Bc4 {[%clk 0:00:44]}  O-O {[%clk 0:00:44]} 20. O-O-O {[%clk 0:00:41]}  Qe7 {[%clk 0:00:33]} 21. h4 {[%clk 0:00:41]}  Nf6 {[%clk 0:00:19]} 22. dxe5 {[%clk 0:00:22]}  Nxe4 {[%clk 0:00:18]} 23. Nxe4 {[%clk 0:00:21]}  Bxe4 {[%clk 0:00:19]} 24. Bg5 {[%clk 0:00:21]}  Qb4 {[%clk 0:00:14]} 25. Qxb4 {[%clk 0:00:17]}  Rxb4 {[%clk 0:00:14]} 26. b3 {[%clk 0:00:18]}  Nf5 {[%clk 0:00:15]} 27. Ng3 {[%clk 0:00:18]}  Nxg3 {[%clk 0:00:10]} 28. hxg3 {[%clk 0:00:19]}  Bf5 {[%clk 0:00:08]} 29. Be7 {[%clk 0:00:17]}  Rxc4+ {[%clk 0:00:04]} 30. bxc4 {[%clk 0:00:18]}  Rb8 {[%clk 0:00:04]} 31. Rd8+ {[%clk 0:00:05]}  Rxd8 {[%clk 0:00:03]} 32. Bxd8 {[%clk 0:00:06]}  Bxe5 {[%clk 0:00:04]} 33. Rf3 {[%clk 0:00:06]}  Bg4 {[%clk 0:00:02]} 34. Re3 {[%clk 0:00:06]}  Bd4 {[%clk 0:00:03]} 35. Re8+ {[%clk 0:00:06]}  Kg7 {[%clk 0:00:03]} 36. Bxc7 {[%clk 0:00:06]}  Be6 {[%clk 0:00:02]} 37. c5 {[%clk 0:00:05]}  Bxc5 {[%clk 0:00:02]} 38. Be5+ {[%clk 0:00:06]}  f6 {[%clk 0:00:01]} 39. Rxe6 {[%clk 0:00:06]}  fxe5 {[%clk 0:00:02]} 40. Rxe5 {[%clk 0:00:07]}  Bd6 {[%clk 0:00:02]} 41. Rg5 {[%clk 0:00:06]}  Kf6 {[%clk 0:00:02]} 42. Kc2 {[%clk 0:00:06]}  Be7 {[%clk 0:00:02]} 43. Kd3 {[%clk 0:00:06]} 1-0


[Site "https://www.chess.com"]